Cogmind - Beta 16 @@@ ROGUE MODE // 2025.11.06 @ 22:14:58 Player: Velocity Result: Destroyed by Y-45 Defender with Heavy Assault Rifle Performance ------------- Evolutions (0) 0 Regions Visited (2) 400 Robots Destroyed (9) 45 Value Destroyed (252) 252 Prototype IDs (0) 0 Alien Tech Used (0) 0 Bonus (60) 60 TOTAL SCORE: 757 Bonus ------- Follower Combat Kills 60 Cogmind --------- Core Integrity 0/250 Matter 290/300 Energy 52/100 System Corruption 0% Temperature Cool (90) Movement Core (400) Ox7 Location -10/Mines Parts ------- > --- POWER (1) -------- (None) > --- PROPULSION (2) --- (None) > --- UTILITY (2) ------ Large Storage Unit Seismic Detector > --- WEAPON (2) ------- Small Laser Small Laser > --- INVENTORY (15) --- Light Ion Engine Light Ion Engine Light Nuclear Core Light Nuclear Core Light Treads Flight Unit Flight Unit Flight Unit Heat Sink Improved Heat Sink Improved Heat Sink Improved Terrain Scanner Mining Claw Peak State ------------ > --- POWER ------------ Light Ion Engine > --- PROPULSION ------- Light Treads Light Treads > --- UTILITY ---------- Large Storage Unit Seismic Detector > --- WEAPON ----------- Small Laser Assault Rifle > --- INVENTORY -------- Ion Engine Light Nuclear Core Light Nuclear Core Light Treads Flight Unit Flight Unit Flight Unit Heat Sink Improved Heat Sink Improved Terrain Scanner Small Laser Small Laser Mining Claw [Rating: 9] Favorites ----------- Power Light Ion Engine Engine Light Ion Engine Propulsion Light Treads Treads Light Treads Leg Aluminum Leg Utility Seismic Detector Device Seismic Detector Storage Large Storage Unit Weapon Small Laser Energy Gun Small Laser Ballistic Gun Assault Rifle Build | -11 -10 -10 ------- Run | Yrd Mat Min Slots Evolved . | . . . Power . | . . . Propulsion . | . . . Utility . | . . . Weapon . | . . . Parts Attached 15 | 7 3 5 Power 3 | 1 . 2 Engine 3 | 1 . 2 Core . | . . . Reactor . | . . . Propulsion 5 | 2 2 1 Treads 3 | . 2 1 Leg 2 | 2 . . Wheel . | . . . Hover . | . . . Flight . | . . . Utility 3 | 2 1 . Device 1 | 1 . . Storage 2 | 1 1 . Processor . | . . . Hackware . | . . . Protection . | . . . Artifact . | . . . Weapon 4 | 2 . 2 Energy Gun 3 | 1 . 2 Energy Cannon . | . . . Ballistic Gun 1 | 1 . . Ballistic Cannon . | . . . Launcher . | . . . Special Weapon . | . . . Impact Weapon . | . . . Slashing Weapon . | . . . Piercing Weapon . | . . . Special Melee Weapon . | . . . Unidentified Prototypes . | . . . Parts Lost 7 | . . 7 Power 3 | . . 3 Propulsion 2 | . . 2 Utility . | . . . Weapon 2 | . . 2 Highest Loss Streak 6 | . . 6 To Critical Strikes . | . . . Average Backups 9 | 2 7 10 Power 1 | . 1 1 Propulsion 3 | 1 2 3 Utility 2 | . 2 3 Weapon 1 | . 1 2 Tool/Special . | . . . Unused Backups 13 | . . 13 Power 4 | . . 4 Propulsion 4 | . . 4 Utility 4 | . . 4 Weapon 1 | . . 1 Tool/Special . | . . . Average Slot Usage (%) 98 | . 100 97 Engine 13 | . 14 12 Treads 21 | . 6 27 Leg 6 | . 21 . Device 14 | . 14 14 Storage 14 | . 14 14 Energy Gun 14 | . 14 14 Ballistic Gun 12 | . 14 12 Peak Build Rating 9 | 7 8 9 Average Rating 7 | 5 7 8 On Entrance 5 | . 7 8 Avg Prop Armor Cover (%) . | . . . Naked Turns . | . . . Heaviest Build 27 | 12 27 27 Greatest Support 40 | 20 40 40 Greatest Overweight (x) 3 | 3 1 . Average Overweight (x) . | . . . Largest Inventory Capacity 15 | 8 15 15 Average Capacity 13 | 7 10 15 Most Carried 15 | 5 9 15 Average Carried 9 | 2 7 10 Final Capacity 15 | 8 15 15 Final Carried 13 | 5 9 13 Class Distribution -------------------- 100% | Mutant Dominant Class ---------------- Mutant | -10/Materials Mutant | -10/Mines Resources | -11 -10 -10 ----------- Run | Yrd Mat Min Matter Collected 376 | 201 89 86 Remotely . | . . . Salvage Created 236 | 10 89 137 Parts 19 | 4 4 11 Haulers Intercepted . | . . . Recyclers Shooed . | . . . Parts Field Recycled . | . . . Retrieved Matter . | . . . Parts Self-Destructed . | . . . Prevented . | . . . Parts Restored . | . . . Kills | -11 -10 -10 ------- Run | Yrd Mat Min Combat Hostiles Destroyed 8 | . 2 6 Guns 8 | . 2 6 Classes Destroyed 4 | 1 1 2 Tunneler 1 | 1 . . Swarmer 3 | . . 3 Grunt 4 | . 2 2 Demolisher 1 | . . 1 Best Kill Streak 3 | 1 1 3 Combat Bots Only 3 | . 1 3 Max Kills in Single Turn 1 | 1 1 1 Gunslinging . | . . . Exploded . | . . . Melee . | . . . Uniques/NPCs Destroyed . | . . . Combat | -11 -10 -10 -------- Run | Yrd Mat Min Hostile Shots Fired 66 | . 15 51 Missed 16 | . 5 11 Hits 50 | . 10 40 Projectile 50 | . 10 40 AOE 13 | . . 13 Critical Strikes 3 | . . 3 Damage Taken 985 | . 118 867 Core 253 | . 10 243 Absorbed by Shields . | . . . Core Remaining (%) 100 | 100 . . Volleys Fired 26 | 1 6 19 Largest 2 | 2 2 2 Hottest 80 | 60 60 80 Shots Fired 52 | 2 12 38 Gun 52 | 2 12 38 Cannon . | . . . Launcher . | . . . Special . | . . . Kinetic 17 | 1 6 10 Thermal 35 | 1 6 28 Explosive . | . . . Electromagnetic . | . . . Robot Hit Streak 8 | 1 8 7 Robot Miss Streak 3 | . 3 2 Penetration Max . | . . . Secondary Targets . | . . . Shots Hit Robots 37 | 1 8 28 Core Hits 20 | 1 5 14 Critical Kills . | . . . Critical Parts Destroyed . | . . . Critical Strikes . | . . . Melee Attacks . | . . . Impact . | . . . Slashing . | . . . Piercing . | . . . Sneak Attacks . | . . . Combat Hostiles . | . . . Follow-up Attacks . | . . . Damage Inflicted 394 | 10 94 290 Guns 390 | 10 94 286 Cannons . | . . . Explosions . | . . . Melee . | . . . Ramming 4 | . . 4 Kinetic 117 | . 49 68 Thermal 273 | 10 45 218 Explosive . | . . . Electromagnetic . | . . . Impact . | . . . Slashing . | . . . Piercing . | . . . Highest Corruption . | . . . Average Corruption . | . . . Corruption Purged . | . . . Corruption Blocked . | . . . Overload Shots . | . . . Overflow Damage . | . . . Projectiles . | . . . Explosions . | . . . Melee . | . . . Knockbacks . | . . . Impact . | . . . Kinetic . | . . . Secondary . | . . . Self-Inflicted Damage . | . . . Shots . | . . . Rammed 1 | . . 1 Targets Rammed 1 | . . 1 Kicked . | . . . Crushed . | . . . Highest Temperature 105 | . 27 105 Average Temperature 31 | . 13 37 Received Heat Transfer 279 | . 72 207 Siege Activations . | . . . Martial Activations . | . . . Shielding Activations . | . . . Robots Disrupted . | . . . Combat Hostiles . | . . . Robots Corrupted . | . . . Combat Hostiles . | . . . Parts Fried . | . . . Impact Corruptions . | . . . Robots Melted . | . . . Combat Hostiles . | . . . Parts Melted . | . . . Heat Transferred 625 | 25 100 500 Parts Sabotaged . | . . . Parts Stolen . | . . . Parts Stripped . | . . . Power Chain Reactions . | . . . Alert | -11 -10 -10 ------- Run | Yrd Mat Min Maximum Alert Level . | . . . Low Security (%) 100 | 100 100 100 Level 1 . | . . . Level 2 . | . . . Level 3 . | . . . Level 4 . | . . . Level 5 . | . . . High Security . | . . . Max Security . | . . . Peak Influence 100 | 5 50 100 Initial 3 | . 3 . Average 24 | 1 16 31 Influence Increases 313 | 5 90 218 Destroy 0b10 Robot/C 200 | . 40 160 Destroy 0b10 Robot/NC 5 | 5 . . Destroy Leader 50 | . 10 40 Allied During Kill 3 | . . 3 Successful Hack 10 | . 10 . Lose Combat Pursuer 45 | . 30 15 Influence Decreases 306 | . 95 211 Entered New Map 2 | . 2 . Time Decay 247 | . 93 154 Lost Part 40 | . . 40 Lost Ally 17 | . . 17 Squads Dispatched . | . . . Investigation . | . . . Extermination . | . . . Reinforcement . | . . . Assault . | . . . Garrison . | . . . Intercept . | . . . Searches Triggered . | . . . Construction Impeded . | . . . Haulers Reinforced . | . . . Active Scanning Responses . | . . . Cargo Convoy Interrupts . | . . . Stealth | -11 -10 -10 --------- Run | Yrd Mat Min Distress Signals . | . . . Communications Jammed . | . . . Distress Signals . | . . . Times Spotted 18 | . 6 12 Peak Tracking Total 4 | . 3 4 Tactical Retreats 2 | . 1 1 Traps | -11 -10 -10 ------- Run | Yrd Mat Min Traps Triggered . | . . . Indirectly . | . . . Trap Hack Attempts . | . . . Triggered . | . . . Disarmed . | . . . Reprogrammed . | . . . Reused . | . . . Traps Extracted . | . . . Installed . | . . . Triggered . | . . . Machines | -11 -10 -10 ---------- Run | Yrd Mat Min Machines Disabled . | . . . Max in Single Turn . | . . . Machines Repaired . | . . . Machines Dismantled . | . . . Machines Sabotaged . | . . . Overloaded Fab Kills . | . . . Hacking | -11 -10 -10 --------- Run | Yrd Mat Min Machines Accessed 2 | . 2 . Terminals 2 | . 2 . Fabricators . | . . . Repair Stations . | . . . Recycling Units . | . . . Scanalyzers . | . . . Garrison Access . | . . . Total Hacks 5 | . 5 . Successful 3 | . 3 . Failed 2 | . 2 . Catastrophic 1 | . 1 . Database Lockouts . | . . . Manual 1 | . 1 . Terminals 5 | . 5 . Fabricators . | . . . Repair Stations . | . . . Recycling Units . | . . . Scanalyzers . | . . . Garrison Access . | . . . Terminal Hacks 3 | . 3 . Alert Level 1 | . 1 . Hauler Manifests 1 | . 1 . Zone Layout 1 | . 1 . Fabricator Hacks . | . . . Repair Station Hacks . | . . . Recycling Unit Hacks . | . . . Scanalyzer . | . . . Garrison Access Hacks . | . . . Unauthorized Hacks . | . . . Terminals . | . . . Fabricators . | . . . Repair Stations . | . . . Recycling Units . | . . . Scanalyzers . | . . . Garrison Access . | . . . Data Cores Recovered . | . . . Used . | . . . Hacking Detections 2 | . 2 . Full Trace Events . | . . . Feedback Events . | . . . Feedback Blocked . | . . . Robot Schematics Acquired . | . . . Robots Built . | . . . Authchips . | . . . Time . | . . . Total Robot Build Rating . | . . . Part Schematics Acquired . | . . . Parts Built . | . . . Authchips . | . . . Time . | . . . Total Part Build Rating . | . . . Part Studies Acquired . | . . . Parts Repaired . | . . . Time . | . . . Parts Recycled . | . . . Recycled Matter . | . . . Retrieved Matter . | . . . Retrieved Components . | . . . Parts Scanalyzed . | . . . Part Schematics Acquired . | . . . Parts Damaged . | . . . Bothacking | -11 -10 -10 ------------ Run | Yrd Mat Min Used RIF Installer . | . . . Robots Hacked . | . . . Non-combat . | . . . Combat . | . . . Robot Hacks Applied . | . . . Relay Couplers Released . | . . . Fabnet Peak Effective % . | . . . Robots Rewired . | . . . Allies Hacked . | . . . Hacks Repelled . | . . . Allies | -11 -10 -10 -------- Run | Yrd Mat Min Total Allies 1 | . . 1 Largest Group 1 | . . 1 Highest-Rated Group 31 | . . 31 Highest-Rated Ally 31 | . . 31 Total Orders . | . . . Ally Attacks 13 | . . 13 Total Damage 171 | . . 171 Kills 2 | . . 2 Allies Corrupted . | . . . Allies Melted . | . . . Intel | -11 -10 -10 ------- Run | Yrd Mat Min Active Infowar (turns) 861 | 10 254 597 Seismic 861 | 10 254 597 Robot Analysis Total . | . . . Derelict Logs Recovered 2 | . . 2 Drone Launches . | . . . Drone Recoveries . | . . . Exploration | -11 -10 -10 ------------- Run | Yrd Mat Min Turns Passed 930 | 79 254 597 Spaces Moved 503 | 48 152 303 Core 10 | 10 . . Treads 339 | . 36 303 Legs 154 | 38 116 . Wheels . | . . . Hover . | . . . Flight . | . . . Fastest Speed 50 | 50 120 160 Average Speed 148 | 127 132 160 Slowest Speed 200 | 200 190 160 Overloaded Moves . | . . . Propulsion Burnouts . | . . . Robots Hopped . | . . . Potential Cave-ins . | . . . Cave-ins Triggered . | . . . Exploration Rate (%) 31 | 4 27 62 Regions Visited 2 Branch Regions 1 Pre-discovered Areas . | . . . Known Exits Taken . | . . . Unknown Exits Taken 2 | 1 1 . Scrap Searched 1 | . . 1 Spaces Dug . | . . . Terrain Destroyed . | . . . Melee . | . . . Projectile . | . . . AOE . | . . . Terrain Rammed . | . . . Walls Destroyed . | . . . Machines Disabled . | . . . Actions | -11 -10 -10 --------- Run | Yrd Mat Min Total 635 | 60 195 380 Wait 63 | . 26 37 Move 501 | 47 151 303 Hop . | . . . Pick Up 20 | 5 6 9 Fast Attach 9 | 7 . 2 Attach 6 | . 2 4 Detach 2 | . . 2 Swap 1 | . 1 . Drop 6 | . 3 3 Fire 26 | 1 6 19 Melee . | . . . Ram . | . . . Kick . | . . . Crush 1 | . . 1 Escape Stasis . | . . . Rewire . | . . . Trap . | . . . Miscellaneous . | . . . Route ------- -11/Scrapyard -10/Materials -10/Mines (discovered 2 exits: Mat / [*Sub]) History --------- Turn | Location | Event 2 | -11/Scrapyard | Met Revision 17 30 | -11/Scrapyard | Discovered new exit (range 15) 80 | -11/Scrapyard | Entered Materials 308 | -10/Materials | Discovered new exit (range 10) 314 | -10/Materials | Build established: Mutant 334 | -10/Materials | Entered Mines 414 | -10/Mines | Discovered new exit (range 10) 525 | -10/Mines | Identified exit to Materials 575 | -10/Mines | Found DCF Scrap (14 items) 642 | -10/Mines | Received a Mining Laser from a helpful Derelict 805 | -10/Mines | Found a hidden stash of uninstalled traps 819 | -10/Mines | Assembled infested the area 837 | -10/Mines | Learned Materials security intel 892 | -10/Mines | Core integrity fell below 50% 928 | -10/Mines | Core integrity fell below 20% 931 | -10/Mines | Destroyed by Y-45 Defender with Heavy Assault Rifle Last Messages --------------- dispatching Demolisher response squad. 00837_ Acquired derelict log, extracted data. Data stored: Materials security intel. 00857_ Assault Rifle destroyed. 00868_ K-01 Serf collects debris. 00872_ The unstable cave ceiling collapses. 00872_ Lgt. Ion Engine destroyed. 00872_ T-07 Excavator destroyed. 00875_ K-01 Serf destroyed. 00875_ Acquired Lgt. Ion Engine. 00893_ Ion Engine destroyed. 00897_ The unstable cave ceiling collapses. 00897_ D-53 Grenadier destroyed. 00915_ The unstable cave ceiling collapses. 00921_ Lgt. Treads destroyed. 00921_ Critical hit (Burn: +37). 00922_ The unstable cave ceiling collapses. 00925_ Critical hit (Burn: +37). 00929_ Sml. Laser destroyed. 00931_ Lgt. Treads destroyed. Map ----- +----------------------------------------------------+ | # ##????# #?????#### #???????#?????? | | # ###### #?????# #?????????????? | | # ####??# """ ##?????????????? | | # #??## """ ##??#??????????? | | ## #???## """ ## #####??????? | | ?## ### #????## """ #??????? | | ??### ## #?# #?????## #??????????? | | ????## #### #?# #??????## ## #??????????? | | ?????# ##??## ##?# ######??# ##?####??????????? | | ?????# #????####??# #??## ##???????????????? | | ?????# #??????????###### #???# ######??????????? | | ?????# #???????????????# ##### ##?????????? | | ?????# #???????????????# #????? ???? | | ?????# #???????????????# #????? ???? | | ?????# #???????????????######## #???? ???? | | ?????# #??????????????????????#### #??? ???? | | ?????# #??????????????????????????# ##??? ???? | | ?????# #???????????????????????????######???? ???? | | ?????# ###??????????????????????????????????? ???? | | ?????# #?????????????????????????????????## ???? | | ?????### #?????????????????##??????????????# ???? | | ???????# #?######????###### ##?????????????# #???? | | ???????# #= #???## ##????????????# #???? | | ???????#%#!""" #???# #????????????# #???? | | ???????#! =""" #???# #######???????# #???? | | ???????# #[""" #??## @ ##??????# #???? | | ???????#=# #??# #???#### ####? | | ???????# #?######??## ###?# # ## | | ???????# #?????????# ### # | | ???????# #???????### d ### #" | | ######?# #???????# %Y ## !| | | #?# #???????# ## & Y # !/ | | #?# #???????# ?#& &### # # #? | | %[ #?# #???????#??# ###?# # #? | | == % #?# #??????????# #??# ##### ### | | ##*###?#*#??????????# #??# # ##????#% ? | | ##!#####=########???# ###### ### ##?????#### | | # !|/%!=* #???# #####?####??????????? | | #!######### ### #???###### #????????????????????? | | #*#???????# #????# ####### #?????????????????????? | | # #####???# #?# #?????????????????????? | | # ##??# #?????######## ##????????????????????? | | ##?# ######??????## ##???????????????????? | | #?# #??????# #???????????????????? | | # | #?###### #?????##% #???????????????????? | | ## ##??????#%#?????# = ##???????????????????? | | ?### ##???????# #?????# #????????????????????? | | ????###????????# #?????##==##????????????????????? | | ???????????????# #####??#%##?????????????????????? | | ??????????????## ## ##?# #??????????????????????? | +----------------------------------------------------+ Best States ------------- Heat Dissipation 25 Energy Generation 10 Energy Capacity 250 Matter Stores 300 Matter Capacity 300 Sight Range 16 Terrain Scan Density 10 Evasion (%) 55 Recoil Reduction 2 Item Schematics ----------------- None Robot Schematics ------------------ None Fabricated ------------ Nothing Repaired ---------- Nothing Studied --------- None Alien Tech Used ----------------- None Achievements -------------- You Again Challenges ------------ None Game ------ Seed SpikedDerelictDesublimator Manual? 0 Play Time 00:15:59 Cumulative 24.6 hours Start 2025.11.06 @ 21:55:19 End 2025.11.06 @ 22:14:58 Sessions 1 Manual Loads 0 Difficulty Rogue Special Mode None Game No. 15 Rogue 9 Adventurer 5 Explorer 1 Win Type - Total 1 Types 1/0/0/0/0/0/0/0/0/0 Lore% 12 Gallery% 31 Achievement% 20 Wizard Run 0 Options --------- Layout 1 ASCII 0 Keyboard 0 Movement Mouse Keybinds 0 Fullscreen 2 Font 24/Terminus Map View 50x35 Zoom Use 0% Tactical HUD 1 Map Filters NONE Filters NONE Steam 1 RUN: 120b97d5-5027-4f58-ac68-d49d444019ac